Cogmind - Beta 11.1 @@@ ROGUE MODE // 2022.05.03 @ 09:58:05 Player: Olga Result: Self-destructed Performance ------------- Evolutions (3) 1500 Regions Visited (4) 800 Robots Destroyed (4) 20 Value Destroyed (51) 51 Prototype IDs (0) 0 Alien Tech Used (0) 0 Bonus (470) 470 TOTAL SCORE: 2841 Bonus ------- Pacifist 470 Cogmind --------- Core Integrity 700/700 Matter 114/300 Energy 100/100 System Corruption 0% Temperature Cool (0) Movement Core (50) Location -7/Factory Parts ------- > --- POWER (1) -------- (None) > --- PROPULSION (2) --- (None) > --- UTILITY (8) ------ (None) > --- WEAPON (2) ------- Katana > --- INVENTORY (5) ---- Signal Interpreter Signal Interpreter Improved Terrain Scanner Terrain Scan Processor Rocket Launcher Peak State ------------ > --- POWER ------------ (None) > --- PROPULSION ------- (None) > --- UTILITY ---------- (None) > --- WEAPON ----------- Katana > --- INVENTORY -------- Signal Interpreter Signal Interpreter Improved Terrain Scanner Terrain Scan Processor Rocket Launcher [Rating: 3] Favorites ----------- Power None Propulsion None Utility Signal Interpreter Processor Signal Interpreter Weapon Katana Launcher Rocket Launcher Slashing Weapon Katana Build | -11 -10 -9 -8 -7 ------- Run | Scr Mat Mat Mat Fac Slots Evolved 6 | . . 2 2 2 Power . | . . . . . Propulsion . | . . . . . Utility 6 | . . 2 2 2 Weapon . | . . . . . Parts Attached 3 | . 1 . 2 . Power . | . . . . . Engine . | . . . . . Core . | . . . . . Reactor . | . . . . . Propulsion . | . . . . . Treads . | . . . . . Leg . | . . . . . Wheel . | . . . . . Hover . | . . . . . Flight . | . . . . . Utility 1 | . 1 . . . Device . | . . . . . Storage . | . . . . . Processor 1 | . 1 . . . Hackware . | . . . . . Protection . | . . . . . Artifact . | . . . . . Weapon 2 | . . . 2 . Energy Gun . | . . . . . Energy Cannon . | . . . . . Ballistic Gun . | . . . . . Ballistic Cannon . | . . . . . Launcher 1 | . . . 1 . Special Weapon . | . . . . . Impact Weapon . | . . . . . Slashing Weapon 1 | . . . 1 . Piercing Weapon . | . . . . . Special Melee Weapon . | . . . . . Unidentified Prototypes . | . . . . . Parts Lost 1 | . . 1 . . Power . | . . . . . Propulsion . | . . . . . Utility 1 | . . 1 . . Weapon . | . . . . . Highest Loss Streak 1 | . . 1 . . To Critical Strikes . | . . . . . Average Slot Usage (%) 5 | . . 8 3 7 Processor 4 | . . 8 . . Slashing Weapon 1 | . . . 2 7 Naked Turns 147 | . 31 37 79 . Heaviest Build 4 | . . . 4 2 Greatest Support 3 | 3 3 3 3 3 Greatest Overweight (x) 1 | . . . 1 . Average Overweight (x) . | . . . . . Largest Inventory Capacity 5 | 5 5 5 5 5 Average Capacity 5 | 5 5 5 5 5 Most Carried 5 | . 2 5 5 5 Average Carried 4 | . . 4 4 5 Final Capacity 5 | 5 5 5 5 5 Final Carried 5 | . 2 5 5 5 Class Distribution -------------------- 100% | Mutant Dominant Class ---------------- Mutant | -10/Materials Mutant | -9/Materials Mutant | -8/Materials Mutant | -7/Factory Resources | -11 -10 -9 -8 -7 ----------- Run | Scr Mat Mat Mat Fac Matter Collected 4 | . . . 4 . Remotely . | . . . . . Salvage Created 19 | . . . 19 . Parts 4 | . . . 4 . Haulers Intercepted . | . . . . . Recyclers Shooed . | . . . . . Parts Field Recycled . | . . . . . Retrieved Matter . | . . . . . Parts Self-Destructed . | . . . . . Prevented . | . . . . . Kills | -11 -10 -9 -8 -7 ------- Run | Scr Mat Mat Mat Fac Combat Hostiles Destroyed 3 | . . . 3 . AOE 3 | . . . 3 . Classes Destroyed 2 | . . . 2 . Worker 1 | . . . 1 . Swarmer 3 | . . . 3 . Best Kill Streak 4 | . . . 4 . Combat Bots Only 3 | . . . 3 . Max Kills in Single Turn 2 | . . . 2 . Gunslinging . | . . . . . Exploded 2 | . . . 2 . Melee . | . . . . . Uniques/NPCs Destroyed . | . . . . . Combat | -11 -10 -9 -8 -7 -------- Run | Scr Mat Mat Mat Fac Damage Taken 744 | . 47 378 319 . Core 696 | . 41 363 292 . Absorbed by Shields . | . . . . . Core Remaining (%) 59 | 100 83 9 46 . Volleys Fired 4 | . . . 4 . Largest 1 | . . . 1 . Hottest 33 | . . . 33 . Shots Fired 4 | . . . 4 . Gun . | . . . . . Cannon . | . . . . . Launcher 4 | . . . 4 . Special . | . . . . . Kinetic . | . . . . . Thermal . | . . . . . Explosive 4 | . . . 4 . Electromagnetic . | . . . . . Robot Hit Streak 1 | . . . 1 . Robot Miss Streak 1 | . . . 1 . Penetration Max . | . . . . . Secondary Targets . | . . . . . Shots Hit Robots 3 | . . . 3 . Core Hits 5 | . . . 5 . Critical Kills . | . . . . . Critical Parts Destroyed . | . . . . . Critical Strikes . | . . . . . Melee Attacks 2 | . . . 2 . Impact . | . . . . . Slashing 2 | . . . 2 . Piercing . | . . . . . Sneak Attacks . | . . . . . Combat Hostiles . | . . . . . Follow-up Attacks . | . . . . . Damage Inflicted 397 | . 12 66 319 . Guns . | . . . . . Cannons . | . . . . . Explosions 275 | . . . 275 . Melee 37 | . . . 37 . Ramming 85 | . 12 66 7 . Kinetic . | . . . . . Thermal . | . . . . . Explosive 275 | . . . 275 . Electromagnetic . | . . . . . Impact . | . . . . . Slashing 37 | . . . 37 . Piercing . | . . . . . Highest Corruption 2 | . . 2 1 . Average Corruption 1 | . . 1 1 . Corruption Purged . | . . . . . Corruption Blocked . | . . . . . Overload Shots . | . . . . . Overflow Damage . | . . . . . Projectiles . | . . . . . Explosions . | . . . . . Melee . | . . . . . Knockbacks 3 | . 1 2 . . Impact 3 | . 1 2 . . Kinetic . | . . . . . Secondary . | . . . . . Self-Inflicted Damage 39 | . 6 30 3 . Shots . | . . . . . Rammed 24 | . 1 19 4 . Targets Rammed 24 | . 1 19 4 . Kicked . | . . . . . Crushed . | . . . . . Highest Temperature 5 | . . 5 1 . Average Temperature 3 | . . 5 1 . Received Heat Transfer 318 | . 21 189 108 . Siege Activations . | . . . . . Robots Corrupted . | . . . . . Combat Hostiles . | . . . . . Parts Fried . | . . . . . Impact Corruptions . | . . . . . Robots Melted . | . . . . . Combat Hostiles . | . . . . . Parts Melted . | . . . . . Heat Transferred . | . . . . . Parts Sabotaged . | . . . . . Parts Stolen . | . . . . . Parts Stripped . | . . . . . Power Chain Reactions . | . . . . . Missiles Intercepted . | . . . . . Alert | -11 -10 -9 -8 -7 ------- Run | Scr Mat Mat Mat Fac Peak Influence 243 | . 51 61 243 109 Initial 109 | . . 21 25 109 Average 77 | . 11 37 143 109 Maximum Alert Level 1 | . . . 1 . Low Security (%) 90 | 100 100 100 75 100 Level 1 9 | . . . 24 . Level 2 . | . . . . . Level 3 . | . . . . . Level 4 . | . . . . . Level 5 . | . . . . . High Security . | . . . . . Max Security . | . . . . . Squads Dispatched 6 | . 1 2 3 . Investigation 2 | . . 1 1 . Extermination . | . . . . . Reinforcement 4 | . 1 1 2 . Assault . | . . . . . Garrison . | . . . . . Intercept . | . . . . . Searches Triggered . | . . . . . Construction Impeded . | . . . . . Haulers Reinforced . | . . . . . Active Scanning Responses . | . . . . . Cargo Convoy Interrupts . | . . . . . Stealth | -11 -10 -9 -8 -7 --------- Run | Scr Mat Mat Mat Fac Distress Signals 1 | . . . 1 . Communications Jammed . | . . . . . Distress Signals . | . . . . . Times Spotted 28 | . 5 10 13 . Peak Tracking Total 9 | . 4 9 8 . Tactical Retreats 1 | . . . 1 . Traps | -11 -10 -9 -8 -7 ------- Run | Scr Mat Mat Mat Fac Traps Triggered 3 | . . 1 1 1 Indirectly . | . . . . . Trap Hack Attempts . | . . . . . Triggered . | . . . . . Disarmed . | . . . . . Reprogrammed . | . . . . . Reused . | . . . . . Traps Extracted . | . . . . . Installed . | . . . . . Triggered . | . . . . . Machines | -11 -10 -9 -8 -7 ---------- Run | Scr Mat Mat Mat Fac Machines Disabled 2 | . . . 2 . Max in Single Turn 1 | . . . 1 . Machines Sabotaged . | . . . . . Garrisons Compromised . | . . . . . Overloaded Fab Kills . | . . . . . Hacking | -11 -10 -9 -8 -7 --------- Run | Scr Mat Mat Mat Fac Machines Accessed 7 | . 1 2 4 . Terminals 7 | . 1 2 4 . Fabricators . | . . . . . Repair Stations . | . . . . . Recycling Units . | . . . . . Scanalyzers . | . . . . . Garrison Access . | . . . . . Total Hacks 21 | . 3 8 10 . Successful 10 | . 2 3 5 . Failed 11 | . 1 5 5 . Catastrophic 3 | . . 2 1 . Database Lockouts . | . . . . . Manual 19 | . 3 8 8 . Terminals 21 | . 3 8 10 . Fabricators . | . . . . . Repair Stations . | . . . . . Recycling Units . | . . . . . Scanalyzers . | . . . . . Garrison Access . | . . . . . Terminal Hacks 4 | . 1 1 2 . Level Access Points 1 | . . . 1 . Terminal Index 3 | . 1 1 1 . Fabricator Hacks . | . . . . . Repair Station Hacks . | . . . . . Recycling Unit Hacks . | . . . . . Scanalyzer . | . . . . . Garrison Access Hacks . | . . . . . Unauthorized Hacks 6 | . 1 2 3 . Terminals 6 | . 1 2 3 . Botnet 6 | . 1 2 3 . Fabricators . | . . . . . Repair Stations . | . . . . . Recycling Units . | . . . . . Scanalyzers . | . . . . . Garrison Access . | . . . . . Data Cores Recovered . | . . . . . Used . | . . . . . Hacking Detections 6 | . 1 2 3 . Full Trace Events 3 | . . 2 1 . Feedback Events . | . . . . . Feedback Blocked . | . . . . . Robot Schematics Acquired . | . . . . . Robots Built . | . . . . . Authchips . | . . . . . Time . | . . . . . Total Robot Build Rating . | . . . . . Part Schematics Acquired . | . . . . . Parts Built . | . . . . . Authchips . | . . . . . Time . | . . . . . Total Part Build Rating . | . . . . . Parts Repaired . | . . . . . Time . | . . . . . Parts Recycled . | . . . . . Recycled Matter . | . . . . . Retrieved Matter . | . . . . . Retrieved Components . | . . . . . Parts Scanalyzed . | . . . . . Part Schematics Acquired . | . . . . . Parts Damaged . | . . . . . Bothacking | -11 -10 -9 -8 -7 ------------ Run | Scr Mat Mat Mat Fac Used RIF Installer . | . . . . . Robots Hacked . | . . . . . Non-combat . | . . . . . Combat . | . . . . . Robot Hacks Applied . | . . . . . Relay Couplers Released . | . . . . . Fabnet Peak Effective % . | . . . . . Robots Rewired . | . . . . . Allies Hacked . | . . . . . Hacks Repelled . | . . . . . Allies | -11 -10 -9 -8 -7 -------- Run | Scr Mat Mat Mat Fac Total Allies . | . . . . . Largest Group . | . . . . . Highest-Rated Group . | . . . . . Highest-Rated Ally . | . . . . . Total Orders . | . . . . . Ally Attacks . | . . . . . Total Damage . | . . . . . Kills . | . . . . . Allies Corrupted . | . . . . . Allies Melted . | . . . . . Intel | -11 -10 -9 -8 -7 ------- Run | Scr Mat Mat Mat Fac Robot Analysis Total . | . . . . . Derelict Logs Recovered . | . . . . . Drone Launches . | . . . . . Drone Recoveries . | . . . . . Exploration | -11 -10 -9 -8 -7 ------------- Run | Scr Mat Mat Mat Fac Turns Passed 342 | 9 37 152 130 14 Spaces Moved 577 | 18 66 260 207 26 Core 577 | 18 66 260 207 26 Treads . | . . . . . Legs . | . . . . . Wheels . | . . . . . Hover . | . . . . . Flight . | . . . . . Fastest Speed 50 | 50 50 50 50 50 Average Speed 51 | 50 50 50 53 50 Slowest Speed 100 | 50 50 50 100 50 Overloaded Moves . | . . . . . Propulsion Burnouts . | . . . . . Robots Hopped . | . . . . . Cave-ins Triggered . | . . . . . Exploration Rate (%) 17 | 3 18 33 32 1 Regions Visited 4 Branch Regions . Pre-discovered Areas . | . . . . . Known Exits Taken 2 | . 1 . 1 . Unknown Exits Taken 2 | 1 . 1 . . Scrap Searched . | . . . . . Spaces Dug . | . . . . . Terrain Destroyed 6 | . . . 6 . Melee . | . . . . . Projectile . | . . . . . AOE 6 | . . . 6 . Terrain Rammed . | . . . . . Walls Destroyed . | . . . . . Machines Disabled . | . . . . . Actions | -11 -10 -9 -8 -7 --------- Run | Scr Mat Mat Mat Fac Total 612 | 17 69 281 219 26 Wait . | . . . . . Move 574 | 17 66 259 206 26 Hop . | . . . . . Pick Up 5 | . 2 3 . . Fast Attach 2 | . 1 . 1 . Attach 1 | . . . 1 . Detach 1 | . . . 1 . Swap . | . . . . . Drop . | . . . . . Fire 4 | . . . 4 . Melee 2 | . . . 2 . Ram 23 | . . 19 4 . Kick . | . . . . . Crush . | . . . . . Escape Stasis . | . . . . . Rewire . | . . . . . Trap . | . . . . . Miscellaneous . | . . . . . Route ------- -11/Scrapyard -10/Materials -9/Materials -8/Materials (discovered 3 exits: *Fac x3) -7/Factory History --------- Turn | Location | Event 5 | -11/Scrapyard | Discovered new exit (range 12) 10 | -11/Scrapyard | Entered Materials 37 | -10/Materials | Discovered new exit (range 12) 47 | -10/Materials | Identified exit to Materials 47 | -10/Materials | Entered another Materials area 47 | -9/Materials | Evolved 2 slots: Utility x2 167 | -9/Materials | Core integrity fell below 50% 192 | -9/Materials | Core integrity fell below 20% 193 | -9/Materials | Discovered new exit (range 10) 199 | -9/Materials | Entered another Materials area 199 | -8/Materials | Evolved 2 slots: Utility x2 280 | -8/Materials | Identified exit to Factory 308 | -8/Materials | Core integrity fell below 50% 320 | -8/Materials | Build established: Mutant 329 | -8/Materials | Entered Factory 329 | -7/Factory | Evolved 2 slots: Utility x2 343 | -7/Factory | Self-destructed Last Messages --------------- Awaiting botnet instructions. >>Access(Main) Found 3 level access points to Factory: (87,94) (5,85) (85,20) Map updated. 00281_ Acquired 4 matter. 00295_ T-07 Excavator is excavating. 00299_ Acquired Katana. 00301_ Critical hit (Burn: +37). 00306_ Slammed into G-47 Trooper. 00306_ Destabilizing: System corrupted (+1). 00315_ K-01 Serf collects debris. PARAMETERS=UTILITY+2 LOCATION=FACTORY GOAL=ESCAPE 00342_ Triggered Stasis Trap. 00342_ A bubble of rippling energy engulfs the area. 00342_ Field strength at 94. Map ----- +----------------------------------------------------+ | ????????????????????????????????????????????? | | ????????????????????????????????????????????? | | ????????????????????????????????????????????? | | ????????????????????????????????????????????? | | ????????????????????????????????????????????? | | ????????????????????????????????????????????? | | ????????????????????????????????????????????? | | ????????????????????????????????????????????? | | ????????????????????????????????????????????? | | ????????????????????????????????????????????? | | ????????????????????????????????????????????? | | ?????????????????????????###????????????????? | | ????????????????????????? ????????????????? | | ????????????????????????? ????????????????? | | ????????????????????????? "????????????????? | | ????????????????????????? "????????????????? | | ????????????????????????# ""???????????????? | | ????????????????????????# ??????????????? | | ????????????????????????# """ "????????????? | | ????????????????????????# """ "????????????? | | ????????????????????????# """ ""???????????? | | ????????????????????????# ??????????? | | ????????????????????????# """ """??????????? | | ????????????????????????# """ """ ?????????? | | ????????????????????????# """ """ #??????? | | ????????????????????????#@ #??????? | | ????????????????????????# """ """ #??????? | | ????????????????????????# """ """ #??????? | | ????????????????????????# """ """ +??????? | | ????????????????????????# #??????? | | ????????????????????????# #??????? | | ????????????????????????# ###### #??????? | | ????????????????????????# #?????????????? | | ????????????????????????# #?????????????? | | ????????????????????????# #?????????????? | | ????????????????????????# #?????????????? | | ???????????????######???# #?????????????? | | ???????????????# ??# #?????????????? | | ???????????????+ ] ??# #?????????????? | | ???????????????#= ?# #?????????????? | | ???????????????# ?# #?????????????? | | ???????????????# # #?????????????? | | ???????????????#= # #?????????????? | | ???????????????# ] + +?????????????? | | ???????????????# # #?????????????? | | ???????????????# # #?????????????? | | ??????????????########### #?????????????? | | ??????????? #?????????????? | | ??????????????????##### #?????????????? | | ??????????????????????# #?????????????? | +----------------------------------------------------+ Best States ------------- Heat Dissipation 34 Energy Generation 5 Energy Capacity 100 Matter Stores 170 Matter Capacity 300 Sight Range 16 Terrain Scan Density 10 Evasion (%) 50 Item Schematics ----------------- None Robot Schematics ------------------ None Fabricated ------------ Nothing Alien Tech Used ----------------- None Achievements -------------- None Challenges ------------ None Game ------ Seed GatlingGrenadeMeganuke Manual? 0 Play Time 00:06:54 Cumulative 169.9 hours Start 2022.05.03 @ 09:51:24 End 2022.05.03 @ 09:58:05 Sessions 1 Manual Loads 0 Difficulty Rogue Special Mode None Game No. 289 Rogue 288 Adventurer 0 Explorer 1 Win Type - Total 8 Types 8/0/0/0/0/0/0/0/0 Lore% 61 Gallery% 64 Achievement% 53 Wizard Run 0 Options --------- ASCII 1 Keyboard 0 Movement Vi Keybinds 0 Fullscreen 1 Font 18/SmallcapsGlow Map View 76x50 Tactical HUD 1 Map Filters NONE Filters NONE Steam 1 RUN: d6a2e8df-8364-4462-8d42-febbe45c289c